[Event "Early-Titled-Tuesday-Blitz-February-13-2024"]
[Site "Chess.com"]
[Date "2024.02.13"]
[Round "2"]
[White "CaspiIsrael"]
[Black "crazy_m_attack"]
[Result "1-0"]
[WhiteElo "2773"]
[BlackElo "2450"]
[TimeControl "180+1"]
[EndTime "8:20:01 PST"]
[Termination "CaspiIsrael won by resignation"]

1. d4 {[%clk 0:03:00.9]} 1... d5 {[%clk 0:02:57.7]} 2. Nf3 {[%clk 0:02:58.7]}
2... Nf6 {[%clk 0:02:57.4]} 3. Bf4 {[%clk 0:02:57.5]} 3... c5 {[%clk 0:02:57]}
4. e3 {[%clk 0:02:57.7]} 4... Nc6 {[%clk 0:02:57.3]} 5. Nbd2 {[%clk 0:02:58.1]}
5... cxd4 {[%clk 0:02:48.1]} 6. exd4 {[%clk 0:02:52.4]} 6... Bf5 {[%clk
0:02:48.2]} 7. Bb5 {[%clk 0:02:50.5]} 7... Qb6 {[%clk 0:02:44.8]} 8. c4 {[%clk
0:02:48.5]} 8... dxc4 {[%clk 0:02:45.7]} 9. Qa4 {[%clk 0:02:48.1]} 9... a6
{[%clk 0:02:25]} 10. Bxc6+ {[%clk 0:02:45.1]} 10... Qxc6 {[%clk 0:02:23.6]} 11.
Qxc6+ {[%clk 0:02:41.7]} 11... bxc6 {[%clk 0:02:24.5]} 12. Nxc4 {[%clk
0:02:41.5]} 12... Nd5 {[%clk 0:02:24]} 13. Bd2 {[%clk 0:02:40.2]} 13... e6
{[%clk 0:02:20.6]} 14. Nfe5 {[%clk 0:02:39.9]} 14... c5 {[%clk 0:02:17.9]} 15.
dxc5 {[%clk 0:02:38]} 15... Bxc5 {[%clk 0:02:16.1]} 16. Rc1 {[%clk 0:02:38.6]}
16... O-O {[%clk 0:02:12]} 17. Nd7 {[%clk 0:02:17.9]} 17... Rfc8 {[%clk
0:01:59]} 18. Ke2 {[%clk 0:02:03.4]} 18... Be7 {[%clk 0:01:34.1]} 19. f3 {[%clk
0:01:52.5]} 19... Rd8 {[%clk 0:01:25.1]} 20. Nde5 {[%clk 0:01:44.5]} 20... Rac8
{[%clk 0:01:13.1]} 21. g4 {[%clk 0:01:41.6]} 21... Bg6 {[%clk 0:01:09.5]} 22. h4
{[%clk 0:01:42.1]} 22... f6 {[%clk 0:01:00.4]} 23. Nxg6 {[%clk 0:01:37.2]} 23...
hxg6 {[%clk 0:01:01.3]} 24. b3 {[%clk 0:01:29.8]} 24... Kf7 {[%clk 0:00:57.8]}
25. Rc2 {[%clk 0:01:21.8]} 25... e5 {[%clk 0:00:24.9]} 26. Rhc1 {[%clk
0:01:19.3]} 26... Ke6 {[%clk 0:00:23.8]} 27. Na5 {[%clk 0:01:12.8]} 27... Rxc2
{[%clk 0:00:21.3]} 28. Rxc2 {[%clk 0:01:13.7]} 28... Rd6 {[%clk 0:00:13.8]} 29.
Rc8 {[%clk 0:01:09.7]} 29... Rd8 {[%clk 0:00:08.7]} 30. Rc6+ {[%clk 0:01:07.7]}
30... Rd6 {[%clk 0:00:08.9]} 31. Rc4 {[%clk 0:01:04.6]} 31... f5 {[%clk
0:00:07.7]} 32. Nc6 {[%clk 0:01:01.5]} 32... Bf6 {[%clk 0:00:07.1]} 33. g5
{[%clk 0:00:59.8]} 33... Be7 {[%clk 0:00:04.8]} 34. Nxe7 {[%clk 0:00:56.3]}
34... Kxe7 {[%clk 0:00:05.7]} 35. b4 {[%clk 0:00:54.7]} 35... Ke6 {[%clk
0:00:05]} 36. a4 {[%clk 0:00:54.5]} 36... Nb6 {[%clk 0:00:04.8]} 37. Rc7 {[%clk
0:00:52.6]} 37... Nxa4 {[%clk 0:00:04.7]} 38. Rxg7 {[%clk 0:00:52.1]} 38... Kd5
{[%clk 0:00:03.5]} 39. Rc7 {[%clk 0:00:50.3]} 39... Nb6 {[%clk 0:00:03.5]} 40.
Be3 {[%clk 0:00:41.6]} 40... Rc6 {[%clk 0:00:02.2]} 41. Rxc6 {[%clk 0:00:38.5]}
41... Kxc6 {[%clk 0:00:03.1]} 42. Bxb6 {[%clk 0:00:38.4]} 42... Kxb6 {[%clk
0:00:04]} 43. h5 {[%clk 0:00:38.5]} 43... gxh5 {[%clk 0:00:04.5]} 44. g6 {[%clk
0:00:35.8]} 44... h4 {[%clk 0:00:04.4]} 45. g7 {[%clk 0:00:23.3]} 1-0

[Event "Early-Titled-Tuesday-Blitz-February-13-2024"]
[Site "Chess.com"]
[Date "2024.02.13"]
[Round "2"]
[White "IngOscarArdila"]
[Black "noblerone"]
[Result "1-0"]
[WhiteElo "2294"]
[BlackElo "2509"]
[TimeControl "180+1"]
[EndTime "8:20:01 PST"]
[Termination "IngOscarArdila won by resignation"]

1. d4 {[%clk 0:03:00]} 1... d5 {[%clk 0:02:55.9]} 2. c4 {[%clk 0:02:59.7]} 2...
c6 {[%clk 0:02:48.7]} 3. Nc3 {[%clk 0:02:59]} 3... Nf6 {[%clk 0:02:48.7]} 4.
cxd5 {[%clk 0:02:55.6]} 4... cxd5 {[%clk 0:02:48.4]} 5. Bf4 {[%clk 0:02:56]}
5... Nc6 {[%clk 0:02:43.4]} 6. e3 {[%clk 0:02:55.8]} 6... a6 {[%clk 0:02:37.8]}
7. Nf3 {[%clk 0:02:54.8]} 7... Bg4 {[%clk 0:02:35.7]} 8. Be2 {[%clk 0:02:54.4]}
8... e6 {[%clk 0:02:30.3]} 9. O-O {[%clk 0:02:53.8]} 9... Bd6 {[%clk 0:02:15.7]}
10. Bxd6 {[%clk 0:02:52.9]} 10... Qxd6 {[%clk 0:02:16.6]} 11. Qb3 {[%clk
0:02:52.8]} 11... O-O {[%clk 0:01:58.6]} 12. h3 {[%clk 0:02:46.9]} 12... Bh5
{[%clk 0:01:51.6]} 13. Rac1 {[%clk 0:02:41.6]} 13... Rfc8 {[%clk 0:01:42.9]} 14.
Na4 {[%clk 0:02:37.6]} 14... Na5 {[%clk 0:01:38.5]} 15. Qb6 {[%clk 0:02:22.8]}
15... Qd8 {[%clk 0:01:00.7]} 16. b4 {[%clk 0:01:56.8]} 16... Nc4 {[%clk
0:00:55]} 17. Bxc4 {[%clk 0:01:50.8]} 17... dxc4 {[%clk 0:00:53.2]} 18. Qxd8+
{[%clk 0:01:47.2]} 18... Rxd8 {[%clk 0:00:54.1]} 19. Nb6 {[%clk 0:01:47.1]}
19... Rab8 {[%clk 0:00:52.1]} 20. Rxc4 {[%clk 0:01:44.9]} 20... h6 {[%clk
0:00:45.6]} 21. Rfc1 {[%clk 0:01:43.3]} 21... Bxf3 {[%clk 0:00:34.7]} 22. gxf3
{[%clk 0:01:43]} 22... Ne8 {[%clk 0:00:35.6]} 23. a4 {[%clk 0:01:35.2]} 23...
Kf8 {[%clk 0:00:35.4]} 24. a5 {[%clk 0:01:32.1]} 24... Ke7 {[%clk 0:00:34.6]}
25. Kf1 {[%clk 0:01:30.1]} 25... f6 {[%clk 0:00:33.1]} 26. Ke2 {[%clk
0:01:29.6]} 26... Kd6 {[%clk 0:00:29.3]} 27. e4 {[%clk 0:01:27.7]} 27... Ke7
{[%clk 0:00:29.7]} 28. Ke3 {[%clk 0:01:26.9]} 28... Kd6 {[%clk 0:00:30.1]} 29.
f4 {[%clk 0:01:26.4]} 29... Ke7 {[%clk 0:00:30.7]} 30. e5 {[%clk 0:01:25.9]}
30... f5 {[%clk 0:00:24.4]} 31. Rc5 {[%clk 0:01:18.1]} 31... g6 {[%clk
0:00:18.8]} 32. d5 {[%clk 0:01:12.5]} 32... exd5 {[%clk 0:00:18.9]} 33. Nxd5+
{[%clk 0:01:12.6]} 33... Ke6 {[%clk 0:00:18.2]} 34. Nb6 {[%clk 0:00:53]} 34...
g5 {[%clk 0:00:17.6]} 35. fxg5 {[%clk 0:00:49.8]} 35... hxg5 {[%clk 0:00:17.6]}
36. f4 {[%clk 0:00:47.8]} 36... gxf4+ {[%clk 0:00:16.3]} 37. Kxf4 {[%clk
0:00:47.6]} 37... Rd4+ {[%clk 0:00:16.9]} 38. Kg5 {[%clk 0:00:45.4]} 38... Rbd8
{[%clk 0:00:16.5]} 39. Rc8 {[%clk 0:00:36]} 39... Kxe5 {[%clk 0:00:14.4]} 40.
Re1+ {[%clk 0:00:32.7]} 40... Re4 {[%clk 0:00:06.7]} 41. Rxe4+ {[%clk
0:00:29.4]} 41... fxe4 {[%clk 0:00:06.6]} 42. Rxd8 {[%clk 0:00:29.2]} 42... Nd6
{[%clk 0:00:07.5]} 43. Rd7 {[%clk 0:00:18.6]} 43... e3 {[%clk 0:00:07.1]} 44.
Re7+ {[%clk 0:00:18.4]} 44... Kd4 {[%clk 0:00:07.1]} 45. Kf4 {[%clk 0:00:15.7]}
45... e2 {[%clk 0:00:04.7]} 46. Rxe2 {[%clk 0:00:15.3]} 1-0

[Event "Early-Titled-Tuesday-Blitz-February-13-2024"]
[Site "Chess.com"]
[Date "2024.02.13"]
[Round "2"]
[White "Willhaven3"]
[Black "kekic76"]
[Result "1-0"]
[WhiteElo "2617"]
[BlackElo "2371"]
[TimeControl "180+1"]
[EndTime "8:20:02 PST"]
[Termination "Willhaven3 won on time"]

1. d4 {[%clk 0:03:00.9]} 1... d5 {[%clk 0:02:59.6]} 2. Nf3 {[%clk 0:03:01.2]}
2... Nf6 {[%clk 0:02:57.1]} 3. c4 {[%clk 0:03:02.1]} 3... e6 {[%clk 0:02:53.8]}
4. Nc3 {[%clk 0:03:02.1]} 4... Be7 {[%clk 0:02:50.7]} 5. cxd5 {[%clk 0:03:01.7]}
5... exd5 {[%clk 0:02:47.4]} 6. Bf4 {[%clk 0:03:01.5]} 6... O-O {[%clk
0:02:46.6]} 7. e3 {[%clk 0:03:01.6]} 7... c6 {[%clk 0:02:45.4]} 8. Qc2 {[%clk
0:03:01.2]} 8... h6 {[%clk 0:02:42.7]} 9. h3 {[%clk 0:03:01.3]} 9... Be6 {[%clk
0:02:41.6]} 10. Bd3 {[%clk 0:03:01]} 10... Nbd7 {[%clk 0:02:41.1]} 11. O-O
{[%clk 0:03:01]} 11... a6 {[%clk 0:02:33.6]} 12. a3 {[%clk 0:02:59.5]} 12... Rc8
{[%clk 0:02:33.6]} 13. b4 {[%clk 0:02:59.3]} 13... b5 {[%clk 0:02:24.8]} 14. Ne2
{[%clk 0:02:57.3]} 14... Nb6 {[%clk 0:02:24.7]} 15. Nc1 {[%clk 0:02:57.3]} 15...
Nc4 {[%clk 0:02:25]} 16. Nb3 {[%clk 0:02:57.5]} 16... Bd6 {[%clk 0:02:13]} 17.
Bxd6 {[%clk 0:02:55.4]} 17... Qxd6 {[%clk 0:02:09.8]} 18. Nc5 {[%clk 0:02:56.3]}
18... a5 {[%clk 0:01:43.3]} 19. Bxc4 {[%clk 0:02:36.9]} 19... dxc4 {[%clk
0:01:40.9]} 20. Nb7 {[%clk 0:02:36.9]} 20... Qd7 {[%clk 0:01:32.6]} 21. Nxa5
{[%clk 0:02:36.4]} 21... Qd5 {[%clk 0:01:25.1]} 22. Ne5 {[%clk 0:02:30.6]} 22...
Nd7 {[%clk 0:01:19.1]} 23. Nxd7 {[%clk 0:02:24.8]} 23... Bxd7 {[%clk 0:01:20]}
24. e4 {[%clk 0:02:18.2]} 24... Qxd4 {[%clk 0:00:49]} 25. Rad1 {[%clk
0:02:12.4]} 25... Qa7 {[%clk 0:00:46.3]} 26. Rd6 {[%clk 0:02:11]} 26... c5
{[%clk 0:00:23.3]} 27. Rfd1 {[%clk 0:02:10.5]} 27... Be6 {[%clk 0:00:20.1]} 28.
Kh1 {[%clk 0:01:58.1]} 28... cxb4 {[%clk 0:00:19.2]} 29. axb4 {[%clk 0:01:59]}
29... c3 {[%clk 0:00:16.1]} 30. R6d3 {[%clk 0:01:40.9]} 30... Qc7 {[%clk
0:00:11.9]} 31. Rc1 {[%clk 0:01:39.6]} 31... Qe7 {[%clk 0:00:08.4]} 32. Rd4
{[%clk 0:01:33.9]} 32... Qf6 {[%clk 0:00:06.3]} 33. Rcd1 {[%clk 0:01:14.2]}
33... Bc4 {[%clk 0:00:05.7]} 34. f3 {[%clk 0:01:09.9]} 34... Qb6 {[%clk
0:00:04.1]} 35. Nxc4 {[%clk 0:00:57]} 35... bxc4 {[%clk 0:00:04.7]} 36. Qxc3
{[%clk 0:00:56.7]} 36... Rc7 {[%clk 0:00:04.2]} 37. Rd6 {[%clk 0:00:54]} 37...
Qb5 {[%clk 0:00:03.3]} 38. R6d5 {[%clk 0:00:53.9]} 38... Qb7 {[%clk 0:00:03.4]}
39. R1d4 {[%clk 0:00:52.2]} 39... Rfc8 {[%clk 0:00:02.9]} 40. e5 {[%clk
0:00:39.7]} 40... Qa6 {[%clk 0:00:03]} 41. Kh2 {[%clk 0:00:38.5]} 41... Qe6
{[%clk 0:00:03.1]} 42. Rd1 {[%clk 0:00:36.6]} 42... Qc6 {[%clk 0:00:03.2]} 43.
Rd6 {[%clk 0:00:35.4]} 43... Qb7 {[%clk 0:00:03.3]} 44. R1d4 {[%clk 0:00:35.1]}
44... Qb5 {[%clk 0:00:03.5]} 45. Rg4 {[%clk 0:00:34.9]} 45... g6 {[%clk
0:00:03.1]} 46. Rf6 {[%clk 0:00:33]} 46... Re7 {[%clk 0:00:02]} 47. e6 {[%clk
0:00:32.4]} 1-0

[Event "Early-Titled-Tuesday-Blitz-February-13-2024"]
[Site "Chess.com"]
[Date "2024.02.13"]
[Round "2"]
[White "dealshark"]
[Black "Zq1"]
[Result "0-1"]
[WhiteElo "2132"]
[BlackElo "2488"]
[TimeControl "180+1"]
[EndTime "8:20:05 PST"]
[Termination "Zq1 won by checkmate"]

1. Nf3 {[%clk 0:03:00.2]} 1... Nf6 {[%clk 0:02:58.9]} 2. g3 {[%clk 0:03:00.1]}
2... b6 {[%clk 0:02:56.1]} 3. Bg2 {[%clk 0:02:59.5]} 3... Bb7 {[%clk 0:02:56.3]}
4. c4 {[%clk 0:02:59.5]} 4... g6 {[%clk 0:02:55.8]} 5. O-O {[%clk 0:02:59.4]}
5... Bg7 {[%clk 0:02:55.8]} 6. Nc3 {[%clk 0:02:59.4]} 6... c5 {[%clk 0:02:53]}
7. e3 {[%clk 0:02:49.2]} 7... O-O {[%clk 0:02:51]} 8. d4 {[%clk 0:02:49.4]} 8...
cxd4 {[%clk 0:02:50.9]} 9. exd4 {[%clk 0:02:49.5]} 9... d5 {[%clk 0:02:51]} 10.
b3 {[%clk 0:02:46.8]} 10... Nc6 {[%clk 0:02:45.2]} 11. Bf4 {[%clk 0:02:43.8]}
11... Na5 {[%clk 0:02:33.2]} 12. Qe2 {[%clk 0:02:31.1]} 12... Rc8 {[%clk
0:02:20.8]} 13. Nxd5 {[%clk 0:02:13]} 13... Nxd5 {[%clk 0:02:18.1]} 14. cxd5
{[%clk 0:02:13.1]} 14... Bxd5 {[%clk 0:02:15.7]} 15. Be5 {[%clk 0:02:09.4]}
15... f6 {[%clk 0:02:07.3]} 16. Bf4 {[%clk 0:02:09.5]} 16... e6 {[%clk
0:02:00.7]} 17. Rac1 {[%clk 0:02:05]} 17... Qd7 {[%clk 0:01:59.8]} 18. Rfd1
{[%clk 0:01:55.3]} 18... Rxc1 {[%clk 0:01:53.2]} 19. Rxc1 {[%clk 0:01:54.7]}
19... Rc8 {[%clk 0:01:53.7]} 20. Qd2 {[%clk 0:01:42.4]} 20... Rxc1+ {[%clk
0:01:50.1]} 21. Qxc1 {[%clk 0:01:43.3]} 21... Qc6 {[%clk 0:01:49]} 22. Qxc6
{[%clk 0:01:41]} 22... Nxc6 {[%clk 0:01:47.6]} 23. Kf1 {[%clk 0:01:36.8]} 23...
g5 {[%clk 0:01:41.8]} 24. Be3 {[%clk 0:01:31.6]} 24... g4 {[%clk 0:01:37]} 25.
Nd2 {[%clk 0:01:30.7]} 25... Bxg2+ {[%clk 0:01:31.4]} 26. Kxg2 {[%clk
0:01:31.6]} 26... f5 {[%clk 0:01:31]} 27. f3 {[%clk 0:01:13.9]} 27... h5 {[%clk
0:01:28.3]} 28. fxg4 {[%clk 0:01:13.7]} 28... hxg4 {[%clk 0:01:28.4]} 29. Nc4
{[%clk 0:01:10.7]} 29... Bxd4 {[%clk 0:01:24.4]} 30. Bd2 {[%clk 0:01:03.9]}
30... Kf7 {[%clk 0:01:18.1]} 31. Kf1 {[%clk 0:01:03.6]} 31... e5 {[%clk
0:01:17.1]} 32. Ke2 {[%clk 0:01:03.3]} 32... Ke6 {[%clk 0:01:16.7]} 33. Kd3
{[%clk 0:00:58.4]} 33... Bg1 {[%clk 0:01:08.1]} 34. Be3 {[%clk 0:00:50.1]} 34...
Bxh2 {[%clk 0:01:04.2]} 35. Bf2 {[%clk 0:00:50.4]} 35... f4 {[%clk 0:01:02.1]}
36. gxf4 {[%clk 0:00:50.1]} 36... g3 {[%clk 0:00:51.2]} 37. Be3 {[%clk
0:00:39.3]} 37... g2 {[%clk 0:00:48.5]} 38. fxe5 {[%clk 0:00:39.8]} 38... Nxe5+
{[%clk 0:00:44.6]} 39. Nxe5 {[%clk 0:00:36.2]} 39... Kxe5 {[%clk 0:00:44.5]} 40.
Kc4 {[%clk 0:00:36.8]} 40... Kd6 {[%clk 0:00:40.6]} 41. Kb5 {[%clk 0:00:36.9]}
41... Kc7 {[%clk 0:00:40.2]} 42. a4 {[%clk 0:00:35.3]} 42... g1=Q {[%clk
0:00:35]} 43. Bxg1 {[%clk 0:00:35.2]} 43... Bxg1 {[%clk 0:00:34.7]} 44. b4
{[%clk 0:00:35.2]} 44... Kb7 {[%clk 0:00:32.2]} 45. a5 {[%clk 0:00:34.9]} 45...
a6+ {[%clk 0:00:32]} 46. Kc4 {[%clk 0:00:34.9]} 46... b5+ {[%clk 0:00:30.9]} 47.
Kb3 {[%clk 0:00:35.4]} 47... Bh2 {[%clk 0:00:29.9]} 48. Kc3 {[%clk 0:00:35.7]}
48... Bd6 {[%clk 0:00:29.2]} 49. Kb3 {[%clk 0:00:35.6]} 49... Kc6 {[%clk
0:00:29.3]} 50. Kc3 {[%clk 0:00:36.5]} 50... Kd5 {[%clk 0:00:29.2]} 51. Kb3
{[%clk 0:00:37.1]} 51... Kd4 {[%clk 0:00:28.9]} 52. Ka3 {[%clk 0:00:37.4]} 52...
Kc3 {[%clk 0:00:28.4]} 53. Ka2 {[%clk 0:00:38.1]} 53... Kxb4 {[%clk 0:00:28.5]}
54. Kb2 {[%clk 0:00:38.5]} 54... Kxa5 {[%clk 0:00:28.6]} 55. Kb3 {[%clk
0:00:39.2]} 55... Kb6 {[%clk 0:00:28.8]} 56. Kb2 {[%clk 0:00:39.7]} 56... a5
{[%clk 0:00:29.1]} 57. Kb3 {[%clk 0:00:40.3]} 57... a4+ {[%clk 0:00:29.3]} 58.
Ka2 {[%clk 0:00:41.2]} 58... Ka5 {[%clk 0:00:29.2]} 59. Kb2 {[%clk 0:00:42.1]}
59... b4 {[%clk 0:00:29.5]} 60. Ka2 {[%clk 0:00:43]} 60... Kb5 {[%clk
0:00:29.5]} 61. Kb2 {[%clk 0:00:43.9]} 61... Kc4 {[%clk 0:00:29.8]} 62. Kc2
{[%clk 0:00:44.7]} 62... a3 {[%clk 0:00:29.1]} 63. Kb1 {[%clk 0:00:44.9]} 63...
b3 {[%clk 0:00:27.4]} 64. Ka1 {[%clk 0:00:45.5]} 64... Be5+ {[%clk 0:00:25.1]}
65. Kb1 {[%clk 0:00:45.5]} 65... a2+ {[%clk 0:00:22.2]} 66. Kc1 {[%clk 0:00:46]}
66... a1=Q+ {[%clk 0:00:21.8]} 67. Kd2 {[%clk 0:00:46.9]} 67... Qc3+ {[%clk
0:00:21]} 68. Kd1 {[%clk 0:00:47.1]} 68... Qc2+ {[%clk 0:00:20]} 69. Ke1 {[%clk
0:00:47.2]} 69... Bd4 {[%clk 0:00:19.3]} 70. Kf1 {[%clk 0:00:47.1]} 70... Qf2#
{[%clk 0:00:19.3]} 0-1

[Event "Early-Titled-Tuesday-Blitz-February-13-2024"]
[Site "Chess.com"]
[Date "2024.02.13"]
[Round "2"]
[White "saraswathii"]
[Black "OPQRC"]
[Result "1-0"]
[WhiteElo "2384"]
[BlackElo "2533"]
[TimeControl "180+1"]
[EndTime "8:20:06 PST"]
[Termination "saraswathii won by resignation"]

1. e4 {[%clk 0:02:37.9]} 1... d6 {[%clk 0:02:54.9]} 2. Nf3 {[%clk 0:02:36.2]}
2... g6 {[%clk 0:02:48.3]} 3. d3 {[%clk 0:02:36.2]} 3... Bg7 {[%clk 0:02:47.8]}
4. g3 {[%clk 0:02:35]} 4... Nf6 {[%clk 0:02:47.9]} 5. Bg2 {[%clk 0:02:33.3]}
5... e5 {[%clk 0:02:47.1]} 6. O-O {[%clk 0:02:32.8]} 6... Nc6 {[%clk 0:02:42.2]}
7. c3 {[%clk 0:02:32.6]} 7... Bg4 {[%clk 0:02:34.6]} 8. Nbd2 {[%clk 0:02:31.4]}
8... Qd7 {[%clk 0:02:32.5]} 9. Nc4 {[%clk 0:02:24.9]} 9... h5 {[%clk 0:02:27]}
10. h4 {[%clk 0:02:21.7]} 10... O-O-O {[%clk 0:02:19]} 11. Qb3 {[%clk
0:02:13.2]} 11... Nh7 {[%clk 0:02:11.8]} 12. Ne3 {[%clk 0:02:06.5]} 12... Rdf8
{[%clk 0:02:01.8]} 13. Nxg4 {[%clk 0:02:00.7]} 13... hxg4 {[%clk 0:02:02.7]} 14.
Nh2 {[%clk 0:01:58.2]} 14... f5 {[%clk 0:02:00.4]} 15. f3 {[%clk 0:01:48.5]}
15... gxf3 {[%clk 0:01:58.7]} 16. Bxf3 {[%clk 0:01:31.3]} 16... Kb8 {[%clk
0:01:58.6]} 17. Be3 {[%clk 0:01:21.3]} 17... f4 {[%clk 0:01:58]} 18. Bf2 {[%clk
0:01:18.9]} 18... fxg3 {[%clk 0:01:43.2]} 19. Bxg3 {[%clk 0:01:19.8]} 19... Qh3
{[%clk 0:01:43]} 20. Be1 {[%clk 0:01:04.8]} 20... Bh6 {[%clk 0:01:32.5]} 21. Bg2
{[%clk 0:00:39]} 21... Rxf1+ {[%clk 0:01:31.7]} 22. Nxf1 {[%clk 0:00:31]} 22...
Qxd3 {[%clk 0:01:13.4]} 23. Rd1 {[%clk 0:00:26.9]} 23... Qe2 {[%clk 0:01:13.3]}
24. Bf2 {[%clk 0:00:13.3]} 24... Rf8 {[%clk 0:01:10.9]} 25. Bg3 {[%clk
0:00:12.8]} 25... g5 {[%clk 0:01:02.2]} 26. Re1 {[%clk 0:00:10]} 26... Qd3
{[%clk 0:01:02.3]} 27. Qe6 {[%clk 0:00:07.1]} 27... gxh4 {[%clk 0:00:32.3]} 28.
Qxh6 {[%clk 0:00:05.5]} 28... Rxf1+ {[%clk 0:00:32.5]} 29. Rxf1 {[%clk
0:00:04.6]} 29... a5 {[%clk 0:00:28.4]} 30. Bxh4 {[%clk 0:00:04.1]} 30... Qc2
{[%clk 0:00:21.2]} 31. Qxh7 {[%clk 0:00:03.8]} 31... Qxb2 {[%clk 0:00:21.8]} 32.
Rf8+ {[%clk 0:00:03.1]} 32... Ka7 {[%clk 0:00:21.8]} 33. Qxc7 {[%clk 0:00:03.7]}
33... Qxc3 {[%clk 0:00:19.6]} 34. Rf7 {[%clk 0:00:03]} 34... Qc1+ {[%clk
0:00:18.9]} 35. Kh2 {[%clk 0:00:03.1]} 35... Qb2 {[%clk 0:00:16.8]} 36. Qxc6
{[%clk 0:00:03.3]} 36... Qb1 {[%clk 0:00:10.1]} 37. Bf2+ {[%clk 0:00:03.5]} 1-0

[Event "Early-Titled-Tuesday-Blitz-February-13-2024"]
[Site "Chess.com"]
[Date "2024.02.13"]
[Round "2"]
[White "JG-17"]
[Black "Ariadna_Atreides"]
[Result "1-0"]
[WhiteElo "2475"]
[BlackElo "2153"]
[TimeControl "180+1"]
[EndTime "8:20:06 PST"]
[Termination "JG-17 won on time"]

1. d4 {[%clk 0:03:00.9]} 1... Nf6 {[%clk 0:02:59.3]} 2. Nf3 {[%clk 0:03:00.7]}
2... e6 {[%clk 0:02:57.8]} 3. c4 {[%clk 0:03:01.2]} 3... Bb4+ {[%clk 0:02:57.1]}
4. Bd2 {[%clk 0:02:58.3]} 4... Bxd2+ {[%clk 0:02:57.1]} 5. Nbxd2 {[%clk
0:02:59.2]} 5... b6 {[%clk 0:02:53.7]} 6. g3 {[%clk 0:02:58.3]} 6... Bb7 {[%clk
0:02:52.9]} 7. Bg2 {[%clk 0:02:58.9]} 7... Ne4 {[%clk 0:02:50.4]} 8. O-O {[%clk
0:02:58.5]} 8... O-O {[%clk 0:02:49.3]} 9. Ne5 {[%clk 0:02:56.2]} 9... f5 {[%clk
0:02:42.9]} 10. Nxe4 {[%clk 0:02:52]} 10... Bxe4 {[%clk 0:02:35.4]} 11. Bxe4
{[%clk 0:02:42.1]} 11... fxe4 {[%clk 0:02:36.3]} 12. d5 {[%clk 0:02:35.3]} 12...
Qe7 {[%clk 0:02:22.1]} 13. Qd4 {[%clk 0:02:26.7]} 13... Re8 {[%clk 0:02:13.4]}
14. Qxe4 {[%clk 0:02:13.8]} 14... Na6 {[%clk 0:02:08.7]} 15. Ng4 {[%clk
0:02:02]} 15... Nc5 {[%clk 0:02:05.7]} 16. Qd4 {[%clk 0:01:58.8]} 16... e5
{[%clk 0:01:52.8]} 17. Qd2 {[%clk 0:01:45.3]} 17... a5 {[%clk 0:01:50.7]} 18.
Rfe1 {[%clk 0:01:38.3]} 18... d6 {[%clk 0:01:46.4]} 19. Qc2 {[%clk 0:01:34]}
19... h5 {[%clk 0:01:39.1]} 20. Ne3 {[%clk 0:01:33.5]} 20... Qg5 {[%clk
0:01:30.9]} 21. h4 {[%clk 0:01:31.7]} 21... Qh6 {[%clk 0:01:29.4]} 22. Nf5
{[%clk 0:01:29.8]} 22... Qh7 {[%clk 0:01:26.2]} 23. e4 {[%clk 0:01:28.7]} 23...
Rf8 {[%clk 0:01:24.9]} 24. f3 {[%clk 0:01:14.6]} 24... Rf7 {[%clk 0:01:23.2]}
25. Rf1 {[%clk 0:01:08.7]} 25... Raf8 {[%clk 0:01:22.1]} 26. Kg2 {[%clk
0:01:08.6]} 26... g6 {[%clk 0:01:10.5]} 27. Ne3 {[%clk 0:01:08.4]} 27... Qh6
{[%clk 0:01:03]} 28. Qe2 {[%clk 0:01:06.5]} 28... Rg7 {[%clk 0:00:47.2]} 29. b3
{[%clk 0:01:06]} 29... g5 {[%clk 0:00:43.6]} 30. Nf5 {[%clk 0:01:02.7]} 30...
Rxf5 {[%clk 0:00:43.3]} 31. exf5 {[%clk 0:01:03.6]} 31... gxh4 {[%clk
0:00:43.9]} 32. g4 {[%clk 0:00:54.1]} 32... hxg4 {[%clk 0:00:41.3]} 33. fxg4
{[%clk 0:00:55]} 33... h3+ {[%clk 0:00:34.1]} 34. Kh2 {[%clk 0:00:50.2]} 34...
Qh4 {[%clk 0:00:30.1]} 35. f6 {[%clk 0:00:44.9]} 35... Rxg4 {[%clk 0:00:25.2]}
36. Rg1 {[%clk 0:00:45.2]} 36... Rxg1 {[%clk 0:00:16.7]} 37. Rxg1+ {[%clk
0:00:44.3]} 37... Kf7 {[%clk 0:00:16.5]} 38. Qe3 {[%clk 0:00:35.4]} 38... Qxf6
{[%clk 0:00:14]} 39. Qxh3 {[%clk 0:00:32.8]} 39... Qf4+ {[%clk 0:00:12.6]} 40.
Qg3 {[%clk 0:00:33]} 40... Nd3 {[%clk 0:00:11.9]} 41. Qxf4+ {[%clk 0:00:30.6]}
41... Nxf4 {[%clk 0:00:12.8]} 42. Rf1 {[%clk 0:00:28.7]} 42... Kf6 {[%clk
0:00:12.5]} 43. Kg3 {[%clk 0:00:28.6]} 43... Kg5 {[%clk 0:00:12.7]} 44. Rh1
{[%clk 0:00:28.3]} 44... Nh5+ {[%clk 0:00:09]} 45. Kf3 {[%clk 0:00:28]} 45...
Nf4 {[%clk 0:00:06]} 46. Rh7 {[%clk 0:00:27.6]} 46... Kf5 {[%clk 0:00:04]} 47.
Rxc7 {[%clk 0:00:26.2]} 47... e4+ {[%clk 0:00:04.2]} 48. Ke3 {[%clk 0:00:26.2]}
48... Ng2+ {[%clk 0:00:03.9]} 49. Kd4 {[%clk 0:00:26.2]} 49... Kf4 {[%clk
0:00:02.5]} 50. Rf7+ {[%clk 0:00:26.9]} 50... Kg3 {[%clk 0:00:02]} 51. Kxe4
{[%clk 0:00:27.8]} 51... Kh2 {[%clk 0:00:01.1]} 52. Kf3 {[%clk 0:00:27.7]} 1-0